bitfinex-derivatives/quotes_ETHF0:USTF0_20251009
["timestamp","ask_amount","ask_price","bid_price","bid_amount"]
[1760035796374,0.93521,4314.3,4314.2,1.4835]
[1760035796569,1.27921,4314.3,4314.2,1.4835]
[1760035796775,1.27921,4314.3,4314.2,1.90051]
[1760035797074,1.28191541,4314.3,4314.2,1.90051]
[1760035797767,0.00270541,4314.3,4314.2,1.90051]
[1760035798482,0.00270541,4314.3,4314.2,42.70051]
[1760035798975,0.52090541,4314.3,4314.2,42.70051]
[1760035800477,0.52090541,4314.3,4314.2,41.033]
[1760035800478,0.93790541,4314.3,4314.2,41.033]
[1760035800673,1.64270541,4314.3,4314.2,0.945]
[1760035800872,0.00270541,4314.3,4314.2,1.90051]
[1760035801174,0.86490541,4314.3,4314.2,42.70051]
[1760035801378,1.28190541,4314.3,4314.2,42.70051]
[1760035801571,0.86490541,4314.3,4313.7,0.5385]
[1760035801772,0.8622,4313.4,4313.3,1.6676]
[1760035801975,1.223,4313.4,4312.6,0.5385]
[1760035802174,0.9378,4313.4,4312.7,41.033]
[1760035802374,1.223,4313.1,4313.0,0.77222]
[1760035802578,1.223,4313.1,4313.0,0.712]
[1760035802778,1.223,4313.1,4313.0,0.3551]
[1760035803483,1.223,4313.1,4313.0,0.712]
[1760035805083,0.7512,4313.4,4313.3,0.4171]
[1760035805270,1.41762592,4313.4,4313.3,1.6676]
[1760035805478,3.2078,4313.8,4313.7,1.66756]
[1760035805673,4.65865512,4313.8,4313.7,1.66756]
[1760035805879,4.99915512,4313.8,4313.7,1.12906]
[1760035806381,4.99915512,4313.8,4313.7,0.712]
[1760035806681,1.4533,4313.5,4313.4,0.79168]
[1760035806881,1.4533,4313.5,4313.4,1.13598]
[1760035808381,3.2078,4313.8,4313.7,1.65216]
[1760035809082,3.2078,4313.8,4313.7,42.45216]
[1760035809470,0.9034,4314.1,4314.0,1.65213]
[1760035810076,1.2439,4314.1,4314.0,1.13593]
[1760035810583,1.2439,4313.4,4313.3,0.4171]
[1760035811675,0.5513,4313.3,4313.1,0.41711]
[1760035811989,0.5513,4313.3,4312.5,0.41879193]
[1760035811990,0.3521,4312.6,4312.5,0.41879193]
[1760035812179,1.2439,4312.6,4312.5,0.00162193]
[1760035812482,1.4769,4312.6,4312.5,0.00162193]
[1760035815086,0.6926,4311.7,4311.6,0.6076]
[1760035815283,1.2439,4311.7,4311.6,0.233]
[1760035815483,1.2439,4311.7,4311.6,0.6076]
[1760035815684,1.2439,4311.7,4311.6,0.7189]
[1760035815884,1.2439,4311.7,4311.6,0.3746]
[1760035816085,1.2439,4311.7,4311.6,0.3765334]
[1760035816291,1.2439,4311.7,4311.6,0.0019334]
[1760035817490,9.28117683,4311.7,4310.1,3.2078]
[1760035817682,1.4533,4310.5,4310.4,0.3746]
[1760035818182,1.4533,4310.5,4310.4,0.7189]
[1760035818388,1.4533,4310.5,4310.4,1.13628]
[1760035818583,1.45597862,4310.5,4310.4,0.37694849]
[1760035818787,1.45597862,4310.5,4310.4,0.72124849]
[1760035821589,1.45597862,4310.5,4310.4,0.37694849]
[1760035821996,1.45597862,4310.5,4310.4,0.00234849]
[1760035822696,1.45597862,4310.5,4310.4,0.37694849]
[1760035822892,1.45597862,4310.5,4310.4,0.72124849]
[1760035823492,1.45597862,4310.5,4310.4,0.37694849]
[1760035825199,1.45597862,4310.5,4310.4,0.00234849]
[1760035826103,6.45597862,4310.5,4310.4,0.00234849]
[1760035826998,6.68897862,4310.5,4310.4,0.00234849]
[1760035828799,1.2439,4309.1,4309.0,1.13641]
[1760035829298,1.2439,4309.1,4309.0,1.65261]
[1760035829492,1.2439,4309.1,4309.0,0.7189]
[1760035829697,1.2439,4308.8,4308.7,1.02515]
[1760035830001,1.2439,4308.8,4308.7,1.3712613]
[1760035830798,4.4517,4309.3,4309.2,0.69623865]
[1760035831101,1.04352,4310.2,4308.9,1.04382]
[1760035831102,0.9034,4309.8,4309.7,1.13635]
[1760035831301,1.2439,4309.8,4309.7,1.13635]
[1760035832603,1.4769,4309.8,4309.7,0.79205]
[1760035833500,1.2439,4309.1,4309.0,0.41752]
[1760035833708,1.2439,4309.1,4309.0,1.13642]
[1760035833898,0.9034,4309.1,4309.0,1.60432]
[1760035834199,0.7607,4309.5,4309.4,0.79208]
[1760035834505,0.5615,4310.0,4309.9,0.79203]
[1760035834697,1.135,4310.0,4309.9,0.79203]
[1760035834897,2.10372,4310.0,4309.9,0.79203]
[1760035835502,1.87072,4310.0,4309.9,0.79203]
[1760035835702,2.10372,4310.0,4309.9,0.79203]
[1760035836099,1.6863,4310.0,4309.9,0.79203]
[1760035836500,2.10372,4310.0,4309.9,0.79203]
[1760035836902,1.87072,4310.0,4309.9,0.79203]
[1760035837105,2.10372,4310.0,4309.9,0.79203]
[1760035837297,1.04338,4310.8,4309.9,0.79203]
[1760035837298,0.00267862,4310.5,4310.4,1.60138]
[1760035837497,0.2051,4310.0,4309.9,0.65043]
[1760035837809,1.2254,4309.7,4309.6,41.21746]
[1760035838005,0.5095,4309.3,4308.9,3.2078]
[1760035838306,1.2254,4309.3,4309.2,0.7835]
[1760035839204,1.2254,4309.3,4308.7,41.4850113]
[1760035839205,1.2254,4309.3,4308.7,41.4523513]
[1760035839409,0.8505,4308.8,4308.7,1.3861513]
[1760035839602,1.2254,4308.8,4308.7,1.3861513]
[1760035839805,1.2254,4308.8,4308.7,42.1861513]
[1760035840005,0.41748,4309.4,4309.1,0.41751]
[1760035840207,0.2051,4309.0,4308.8,0.41753]
[1760035840414,1.2254,4308.9,4308.8,41.58353]
[1760035840912,0.8505,4308.9,4308.8,42.03373]
[1760035841113,0.8505,4308.9,4308.8,1.60153]
[1760035844217,0.8505,4308.9,4308.8,1.15133]
[1760035844712,0.8505,4308.9,4308.8,1.60153]
[1760035844904,0.539,4309.5,4309.4,1.55988]
[1760035845109,3.2078,4309.7,4309.6,1.11526]
[1760035845311,4.09796691,4309.7,4309.6,1.55986]
[1760035845513,4.60956691,4309.7,4309.6,1.11526]
[1760035845711,3.76406691,4309.7,4309.6,1.55986]
[1760035846113,4.27566691,4309.7,4309.6,1.55986]
[1760035846518,1.06786691,4309.7,4309.6,1.55986]
[1760035847125,0.539,4310.0,4309.9,1.11523]
[1760035847320,1.46802,4310.0,4309.9,1.11523]
[1760035847517,2.38197982,4310.0,4309.9,1.11523]
[1760035848418,0.8455,4309.1,4309.0,0.75232]
[1760035848616,0.8455,4309.1,4309.0,1.11532]
[1760035848818,0.8455,4309.1,4309.0,1.55992]
[1760035849123,1.0633,4309.5,4309.4,1.55988]
[1760035849418,1.62002891,4309.5,4309.4,1.55988]
[1760035850022,1.06832891,4309.5,4309.4,1.55988]
[1760035850317,1.06832891,4309.5,4309.4,1.79288]
[1760035850318,0.55672891,4309.5,4309.4,1.79288]
[1760035850615,0.3339,4309.6,4309.4,0.233]
[1760035850823,0.8455,4309.6,4309.5,0.6978]
[1760035851022,1.40248261,4309.6,4309.5,0.6978]
[1760035851219,1.40248261,4309.6,4309.5,1.11527]
[1760035851426,0.2178,4309.5,4309.3,0.41748]
[1760035851619,1.75978261,4309.4,4309.3,0.41748]
[1760035851820,1.75978261,4309.4,4309.3,0.75228]
[1760035852226,1.75978261,4309.4,4309.3,1.11528]
[1760035852723,0.55698261,4309.4,4309.3,1.55988]
[1760035852920,0.55698261,4309.4,4309.3,1.79288]
[1760035853424,3.7194,4309.8,4309.7,1.55985]
[1760035853626,4.96389716,4309.8,4309.7,0.41745]
[1760035853819,4.96389716,4309.8,4309.7,0.75225]
[1760035854129,4.96389716,4309.8,4309.7,1.11525]
[1760035855022,4.96389716,4309.8,4309.7,0.75225]
[1760035855324,1.2028,4309.3,4309.2,0.4175]
[1760035855523,1.75609716,4309.3,4309.2,0.9853]
[1760035855722,1.75609716,4309.3,4309.2,0.6505]
[1760035856122,1.75609716,4309.3,4309.2,0.9853]
[1760035856423,1.75609716,4309.3,4309.2,1.3483]
[1760035856623,1.75609716,4309.3,4309.2,1.1153]
[1760035857321,1.75639855,4309.3,4309.2,1.1153]
[1760035858226,1.2028,4309.3,4309.2,1.1153]
[1760035858430,1.75661456,4309.3,4309.2,1.1153]
[1760035859025,0.5116,4309.3,4309.2,1.5599]
[1760035859222,0.75134,4309.8,4309.7,0.41745]
[1760035859523,0.75134,4309.8,4309.7,1.55985]
[1760035859524,0.55388826,4309.8,4309.7,1.55985]
[1760035859924,0.71937862,4310.5,4310.4,0.41738]
[1760035860124,1.27346361,4310.5,4310.4,1.55978]
[1760035860324,1.60736361,4310.5,4310.4,1.55978]
[1760035861123,1.60736361,4310.5,4310.4,1.11518]
[1760035861628,1.06836361,4310.5,4310.4,1.55978]
[1760035861824,1.40226361,4310.5,4310.4,1.1424]
[1760035862022,1.10858,4310.4,4310.3,0.41738]
[1760035862334,1.2028,4310.4,4310.3,1.11518]
[1760035864817,1.2028,4310.4,4310.3,1.55978]
[1760035865224,1.2028,4310.4,4310.3,0.75218]
[1760035865423,1.2028,4310.4,4310.3,1.11518]
[1760035865620,0.41741,4310.1,4309.9,0.41743]
[1760035865930,1.84332,4310.0,4309.9,0.65043]
[1760035866632,1.84332,4310.0,4309.9,0.41743]
[1760035866828,1.4259,4310.0,4309.9,0.41743]
[1760035867130,1.84332,4310.0,4309.9,0.41743]
[1760035867529,1.4259,4310.0,4309.6,40.8]
[1760035867733,0.8659,4309.7,4309.6,40.8]
[1760035867927,0.8659,4309.7,4309.6,41.033]
[1760035868127,0.8659,4309.7,4309.6,41.45046]
[1760035870434,0.8659,4309.7,4309.6,1.36216]
[1760035870929,0.1999,4310.0,4309.9,1.12913]
[1760035871128,1.0658,4310.0,4309.9,1.36213]
[1760035871427,1.84332,4310.0,4309.9,0.3499]
[1760035871632,1.84332,4310.0,4308.8,1.65740418]
[1760035871633,1.226,4309.2,4309.1,1.12921]
[1760035871828,1.226,4308.8,4308.7,0.0018113]
[1760035872931,1.226,4308.8,4308.7,0.3517113]
[1760035873234,1.226,4308.8,4308.7,0.7135113]
[1760035874139,1.226,4308.8,4308.7,0.0018113]
[1760035874629,1.226,4308.8,4308.7,0.3517113]
[1760035874830,0.96876,4308.5,4308.4,0.233]
[1760035875031,1.4259,4308.0,4307.9,0.37311344]
[1760035875230,4.6337,4308.0,4307.9,0.02321344]
[1760035875829,4.6337,4308.0,4307.8,0.234]
[1760035875830,4.6337,4308.0,4307.0,0.4318]
[1760035876036,0.8659,4307.1,4307.0,1.56121]
[1760035876237,0.1999,4307.5,4307.4,0.41767]
[1760035876438,0.5512,4307.5,4307.4,1.56117]
[1760035876629,0.5512,4307.5,4307.4,1.12937]
[1760035876831,1.0658,4307.5,4307.4,0.77947]
[1760035877032,1.42783963,4307.5,4307.4,0.00267393]
[1760035877839,1.226,4307.3,4307.2,0.234]
[1760035878941,1.226,4307.3,4307.2,0.35218357]
[1760035879241,0.5146,4307.3,4307.2,1.14578357]
[1760035879439,0.8659,4307.3,4307.2,0.71398357]
[1760035879642,1.226,4307.3,4307.2,0.71398357]
[1760035879940,0.8659,4307.3,4307.2,0.71398357]
[1760035880144,0.8659,4307.3,4307.2,1.14578357]
[1760035880637,0.20183963,4307.5,4307.3,0.41768]
[1760035880939,1.06773963,4307.5,4307.4,0.7117]
[1760035881941,1.42783963,4307.5,4307.4,0.7117]
[1760035883743,0.71643963,4307.5,4307.4,1.1435]
[1760035883932,0.51653963,4307.5,4307.4,1.1435]
[1760035884243,0.86783963,4307.5,4307.4,1.1435]
[1760035884648,0.00193963,4307.5,4307.4,1.1435]
[1760035885247,0.00193963,4307.5,4307.4,6.1435]
[1760035886039,0.00193963,4307.5,4307.4,46.9435]
[1760035886542,0.51653963,4307.5,4307.4,41.5117]
[1760035886747,0.51653963,4307.5,4307.4,42.1775]
[1760035887634,0.00193963,4307.5,4307.4,42.1775]
[1760035889140,0.51653963,4307.5,4307.4,42.1775]
[1760035889440,0.00193963,4307.5,4307.4,42.1775]
[1760035890245,0.00193963,4307.5,4307.4,42.59517]
[1760035890645,0.51653963,4307.5,4307.4,42.59517]
[1760035891646,0.00193963,4307.5,4307.4,42.59517]
[1760035896452,4.0315,4308.3,4308.2,1.08029]
[1760035896648,0.4936,4308.3,4308.2,1.72839]
[1760035896955,0.8237,4308.3,4308.2,1.72839]
[1760035897362,1.24325738,4308.3,4308.2,1.72839]
[1760035897549,1.24325738,4308.3,4308.2,1.31429]
[1760035898049,1.59745738,4308.3,4308.2,1.31429]
[1760035898355,1.59745738,4308.3,4308.2,0.8967]
[1760035898754,1.59745738,4308.3,4308.2,1.31429]
[1760035899850,1.17987738,4308.3,4308.2,1.31429]
[1760035901054,1.17987738,4308.3,4308.2,1.72839]
[1760035901055,0.49557738,4308.3,4308.2,1.72839]
[1760035902559,0.00197738,4308.3,4308.2,1.72839]
[1760035906767,1.14877738,4308.3,4308.2,0.97579]
[1760035906961,1.14877738,4308.3,4308.2,0.98389]
[1760035907463,1.14877738,4308.3,4308.2,1.32369]
[1760035907861,0.00197738,4308.3,4308.2,1.73239]
[1760035908366,0.48307738,4308.3,4308.2,1.73239]
[1760035909067,1.16667738,4308.3,4308.2,1.32369]
[1760035909272,0.83107738,4308.3,4308.2,1.73239]
[1760035910268,0.00197738,4308.3,4308.2,1.73239]
[1760035911169,0.48307738,4308.3,4308.2,1.73239]
[1760035911567,0.83107738,4308.3,4308.2,1.73239]
[1760035912066,0.00197738,4308.3,4308.2,1.73239]
[1760035913563,0.48307738,4308.3,4308.2,1.73239]
[1760035913972,1.24865738,4308.3,4308.2,0.6721]
[1760035914169,1.58425738,4308.3,4308.2,1.32369]
[1760035914674,1.58425738,4308.3,4308.2,1.08969]
[1760035914881,1.58231,4308.1,4308.0,0.65161]
[1760035915081,1.58231,4308.1,4308.0,0.98391]
[1760035916480,1.58231,4308.1,4308.0,1.32371]
[1760035916678,0.4811,4308.1,4308.0,1.73241]
[1760035916975,0.00197738,4308.3,4308.2,1.49839]
[1760035917682,0.48307738,4308.3,4308.2,1.49839]
[1760035917881,0.48307738,4308.3,4308.2,1.73139]
[1760035918380,0.00197738,4308.3,4308.2,1.73139]
[1760035919680,0.48307738,4308.3,4308.2,1.73139]
[1760035920780,0.83107738,4308.3,4308.2,1.73139]
[1760035920981,1.16667738,4308.3,4308.2,1.32269]
[1760035921178,1.58425738,4308.3,4308.2,1.32269]
[1760035921383,1.58425738,4308.3,4308.2,0.6721]
[1760035921575,1.58425738,4308.3,4308.2,0.5663]
[1760035921775,1.16667738,4308.3,4308.2,0.98389]
[1760035921979,1.16667738,4308.3,4308.2,1.32369]
[1760035922373,0.00197738,4308.3,4308.2,1.73239]
[1760035924381,0.00197738,4308.3,4308.2,1.90176965]
[1760035925779,0.00197738,4308.3,4308.2,1.73239]
[1760035926984,0.00197738,4308.3,4308.2,42.53239]
[1760035930279,3.7328,4309.3,4309.2,0.4175]
[1760035930481,3.7328,4309.8,4309.7,0.74575]
[1760035930689,4.27931724,4309.8,4309.7,1.70035]
[1760035930875,3.7328,4309.8,4309.7,1.70035]
[1760035931387,3.73564779,4309.8,4309.7,1.70035]
[1760035931886,3.21064779,4309.8,4309.7,1.70035]
[1760035932287,4.07004779,4309.8,4309.7,1.30405]
[1760035932785,4.48748779,4309.8,4309.7,1.30405]
[1760035932978,4.41814779,4309.8,4309.7,0.6536]
[1760035933184,1.2075,4309.1,4309.0,0.3283]
[1760035933379,0.6825,4309.1,4309.0,0.233]
[1760035933579,0.6825,4309.1,4309.0,0.97882]
[1760035933891,1.2075,4309.1,4309.0,0.97882]
[1760035935591,1.2075,4309.1,4309.0,1.30412]
[1760035937590,1.2075,4309.1,4309.0,0.97882]
[1760035937895,1.2075,4309.1,4309.0,1.30412]
[1760035939088,1.2075,4309.1,4309.0,0.65052]
[1760035939690,1.2075,4309.1,4309.0,0.97882]
[1760035940592,1.2075,4309.1,4309.0,1.30412]
[1760035941691,1.62501,4309.1,4309.0,0.41752]
[1760035943291,1.2075,4308.1,4308.0,3.95371]
[1760035943496,1.2075,4308.1,4308.0,4.27901]
[1760035943688,0.8594,4308.1,4308.0,4.67531]
[1760035943895,0.525,4308.1,4308.0,4.67531]
[1760035944691,0.8594,4308.1,4308.0,4.2577]
[1760035944902,0.8594,4308.1,4308.0,4.67531]
[1760035945596,1.2075,4308.1,4308.0,4.27901]
[1760035945893,0.525,4308.1,4308.0,4.67531]
[1760035946200,0.5437,4308.5,4308.4,1.07117]
[1760035946501,3.2078,4308.7,4308.6,1.07116]
[1760035946697,3.2078,4308.7,4308.6,1.70046]
[1760035947096,1.48622,4309.0,4308.9,1.07113]
[1760035947299,1.83432,4309.0,4308.9,1.07113]
[1760035947694,1.4168,4309.0,4308.9,1.46743]
[1760035947902,1.4168,4309.0,4308.9,0.6536]
[1760035949005,1.4168,4309.0,4308.9,0.3283]
[1760035949202,1.62503,4308.9,4308.8,0.233]
[1760035949896,1.2075,4308.9,4308.3,40.8]
[1760035950093,0.8594,4308.4,4308.3,41.21758]
[1760035950299,0.8594,4308.4,4308.3,41.45058]
[1760035950805,0.8594,4308.4,4308.3,41.84688]
[1760035951509,4.0672,4308.8,4308.7,1.46745]
[1760035952004,4.0672,4308.8,4308.7,1.07115]
[1760035952205,4.4153,4308.8,4308.7,1.07115]
[1760035953709,4.4153,4308.8,4308.7,1.30415]
[1760035954208,3.2078,4308.8,4308.7,1.70045]
[1760035954606,3.7328,4308.8,4308.7,1.70045]
[1760035957510,4.0672,4308.8,4308.7,1.70045]
[1760035959812,4.48474,4308.8,4308.7,1.70045]
[1760035960210,4.0672,4308.8,4308.7,1.70045]
[1760035961114,4.48474,4308.8,4308.7,1.70045]
[1760035961411,4.0672,4308.8,4308.7,1.70045]
[1760035962607,3.7328,4308.8,4308.7,1.70045]
[1760035962915,3.2078,4309.3,4309.2,1.4651]
[1760035963117,3.2078,4309.3,4309.2,1.6981]
[1760035963310,0.00284779,4309.8,4309.7,1.46505]
[1760035963619,0.00284779,4309.8,4309.7,1.69805]
[1760035963919,0.48444779,4309.8,4309.7,1.69805]
[1760035965207,0.00284779,4309.8,4309.7,1.69805]
[1760035966308,0.00284779,4309.8,4309.7,6.69805]
[1760035966708,0.00284779,4309.8,4309.7,47.49805]
[1760035967909,0.00284779,4309.8,4309.7,47.26505]
[1760035968116,0.6569,4309.6,4309.5,0.41747]
[1760035968414,1.1395,4309.6,4309.5,1.31107]
[1760035968608,1.1395,4309.6,4309.5,42.11107]
[1760035968810,1.1395,4309.6,4309.5,41.6936]
[1760035969515,0.4826,4309.6,4309.5,42.0673]
[1760035970810,0.4826,4309.6,4309.5,41.6936]
[1760035971009,0.8054,4309.6,4309.5,0.8936]
[1760035971220,1.1395,4309.6,4309.5,0.8936]
[1760035971713,1.1395,4309.6,4309.5,0.562]
[1760035972217,1.1395,4309.6,4309.5,0.97947]
[1760035972414,1.1395,4309.6,4309.5,1.31107]
[1760035975418,0.41759,4308.3,4307.7,1.66960648]
[1760035975722,0.2054,4308.5,4307.7,1.68494]
[1760035975723,0.8054,4307.8,4307.7,1.68494]
[1760035975921,1.1395,4307.8,4307.7,0.6606]
[1760035976120,1.3449,4307.5,4307.4,1.07826]
[1760035976315,1.3449,4307.5,4307.4,1.31126]
[1760035976521,1.3449,4307.5,4307.4,41.6936]
[1760035977821,1.3449,4307.5,4307.4,0.233]
[1760035978221,1.1395,4307.3,4307.2,0.00228357]
[1760035978725,1.1395,4307.3,4307.2,0.33128357]
[1760035980920,1.1395,4307.3,4307.2,0.00228357]
[1760035981421,1.1395,4307.3,4307.2,0.33128357]
[1760035981828,1.1395,4307.3,4307.2,0.66288357]
[1760035982127,1.1395,4307.3,4307.2,1.03658357]
[1760035982317,1.1395,4307.3,4307.2,0.66288357]
[1760035984026,3.4132,4307.5,4307.4,1.0343]
[1760035984426,3.8958,4307.5,4307.4,1.0343]
[1760035984626,4.2186,4307.5,4307.4,1.0343]
[1760035984827,3.8958,4307.5,4307.4,1.0343]
[1760035985220,4.2186,4307.5,4307.4,1.45197]
[1760035986933,4.2186,4307.5,4307.4,1.68497]
[1760035987532,3.8958,4307.5,4307.4,1.68497]
[1760035987935,4.2194,4307.5,4307.4,1.31127]
[1760035988327,4.2194,4307.5,4307.4,1.67707]
[1760035989836,1.0116,4307.5,4307.4,1.67707]
[1760035990736,1.0116,4307.5,4307.4,1.31127]
[1760035991036,1.0116,4307.5,4307.4,1.67707]
[1760035991531,1.0116,4307.5,4307.4,1.31127]
[1760035991725,1.3228,4307.5,4307.4,1.31127]
[1760035992131,1.74046,4307.5,4307.4,1.31127]
[1760035992932,1.3228,4307.5,4307.4,1.31127]
[1760035993133,1.74046,4307.5,4307.4,1.31127]
[1760035993636,1.0116,4307.5,4307.4,1.67707]
[1760035994228,1.0116,4307.5,4307.4,1.31127]
[1760035994839,1.3228,4307.5,4307.4,1.07827]
[1760035995738,1.74046,4307.5,4307.2,0.00228357]
[1760035996038,1.05247,4307.4,4307.3,0.41768]
[1760035996237,1.55147,4307.4,4307.3,0.41768]
[1760035996434,1.1338,4307.4,4307.3,1.04028]
[1760035998138,1.55147,4307.4,4307.3,0.41768]
[1760035998932,1.55147,4307.4,4307.2,0.00228357]
[1760035999137,1.1338,4307.3,4307.2,0.41997357]
[1760035999737,1.1338,4307.3,4307.2,0.73127357]
[1760036000245,1.1338,4307.3,4307.2,1.04257357]
[1760036000544,4.547,4308.0,4307.9,0.3113]
[1760036000741,5.19761,4308.0,4307.9,0.72892]
[1760036000949,5.19761,4308.0,4307.9,0.3113]
[1760036001143,4.96461,4308.0,4307.9,0.41762]
[1760036002638,4.96461,4308.0,4307.9,0.72892]
[1760036002949,4.547,4308.0,4307.9,1.40602]
[1760036003139,4.547,4308.0,4307.9,1.04022]
[1760036003344,4.96461,4308.0,4307.9,1.04022]
[1760036003743,4.96461,4308.0,4307.9,0.72892]
[1760036004244,1.55144,4307.8,4307.7,0.41764]
[1760036005550,1.1338,4307.8,4307.7,1.04024]
[1760036005747,1.55143,4307.8,4307.7,1.04024]
[1760036006343,1.55143,4307.8,4307.7,0.72894]
[1760036006943,1.55143,4307.8,4307.7,1.04024]
[1760036007348,1.55143,4307.8,4307.7,0.72894]
[1760036007647,1.55143,4307.8,4307.7,0.3113]
[1760036008246,1.55143,4307.8,4307.7,0.72894]
[1760036009643,0.8226,4307.8,4307.7,1.40604]
[1760036009945,1.05248,4307.3,4307.2,0.00228357]
[1760036010141,0.61536,4306.5,4306.3,0.41777]
[1760036010347,0.6348,4306.4,4306.3,0.72908]
[1760036010550,0.6348,4306.4,4306.3,1.04038]
[1760036010748,1.1338,4306.4,4306.3,1.04038]
[1760036011250,1.13587797,4306.4,4306.3,0.73082838]
[1760036011556,1.13587797,4306.4,4306.3,0.00174838]
[1760036014049,1.36887797,4306.4,4306.3,0.00174838]
[1760036016949,1.78664797,4306.4,4306.3,0.41952838]
[1760036018849,1.78664797,4306.4,4306.3,0.00174838]
[1760036019052,1.78664797,4306.4,4306.3,0.29754838]
[1760036019252,1.78664797,4306.4,4306.3,0.00174838]
[1760036019554,1.78664797,4306.4,4306.3,0.41952838]
[1760036019755,1.78664797,4306.4,4306.3,0.00174838]
[1760036020156,1.78664797,4306.4,4306.3,0.41952838]
[1760036021954,1.36887797,4306.4,4306.3,1.01112838]
[1760036022354,1.78664797,4306.4,4306.3,0.71532838]
[1760036023752,1.78664797,4306.4,4306.3,0.00174838]
[1760036024152,1.13587797,4306.4,4306.3,0.29754838]
[1760036024455,1.36887797,4306.4,4306.3,0.71532838]
[1760036024756,1.78664797,4306.4,4306.3,1.01112838]
[1760036025458,1.78664797,4306.4,4306.3,0.41952838]
[1760036025750,0.50107797,4306.4,4306.3,1.17472838]
[1760036025956,0.78377797,4306.4,4306.3,0.99492838]
[1760036026152,1.10557797,4306.4,4306.3,0.99492838]
[1760036026651,1.52334797,4306.4,4306.3,0.41952838]
[1760036026854,1.52334797,4306.4,4305.9,1.04454]
[1760036026855,1.52334797,4306.4,4304.9,1.1341]
[1760036026856,0.4713,4305.2,4304.9,1.1341]
[1760036027057,0.3104,4305.2,4305.1,0.41789]
[1760036027247,0.3104,4305.2,4305.1,1.08239]
[1760036027248,0.7817,4305.2,4305.1,1.08239]
[1760036027560,0.7817,4305.2,4305.1,1.55199]
[1760036027859,0.7817,4305.2,4305.1,1.5541514]
[1760036028253,3.7052,4305.5,4305.4,0.41787]
[1760036028451,3.7052,4305.5,4305.4,1.55197]
[1760036028658,4.027,4305.5,4305.4,1.55197]
[1760036028851,4.4983,4305.5,4305.4,1.55197]
[1760036029056,4.4983,4305.5,4305.4,1.08237]
[1760036029661,4.4983,4305.5,4305.4,1.55197]
[1760036030561,4.4983,4305.5,4305.4,1.08237]
[1760036032660,4.4983,4305.5,4305.4,0.41787]
[1760036032958,4.4983,4305.5,4305.4,1.08237]
[1760036036060,4.4983,4305.5,4305.4,1.55197]
[1760036036563,1.23701,4306.0,4305.9,1.55192]
[1760036036858,1.0522,4306.0,4305.9,1.55192]
[1760036037057,1.5235,4306.0,4305.9,1.55192]
[1760036037255,1.94131,4306.0,4305.9,0.41782]
[1760036037456,1.5235,4306.0,4305.9,1.08232]
[1760036039364,1.94131,4306.0,4305.9,1.08232]
[1760036040055,1.5235,4306.0,4305.9,1.08232]
[1760036040259,1.2905,4306.0,4305.9,1.08232]
[1760036040465,1.5235,4306.0,4305.9,1.55192]
[1760036041658,1.5235,4306.0,4305.9,1.08232]
[1760036042163,1.94131,4306.0,4305.9,0.75142]
[1760036042759,0.6322,4305.7,4305.6,0.3336]
[1760036043058,1.1035,4305.4,4305.3,1.55198]
[1760036043259,1.1035,4305.4,4305.1,3.2099614]
[1760036043260,1.1035,4305.4,4305.1,2.5870814]
[1760036043462,1.1035,4305.4,4303.8,0.4632]
[1760036043463,0.187,4304.5,4304.4,0.3336]
[1760036043666,0.187,4304.5,4304.4,1.1341]
[1760036043667,4.26,4304.5,4304.4,1.1341]
[1760036044062,4.7313,4304.5,4304.4,1.1341]
[1760036044268,4.7313,4304.5,4304.4,1.1362075]
[1760036044765,4.7313,4304.5,4304.4,0.3357075]
[1760036046068,4.4983,4304.5,4304.4,1.1236075]
[1760036046367,4.7313,4304.5,4304.4,1.1236075]
[1760036047466,4.4983,4304.5,4304.4,1.1236075]
[1760036047665,4.7313,4304.5,4304.4,1.1236075]
[1760036048070,3.5182,4304.5,4304.4,1.1236075]
[1760036048369,3.2078,4305.0,4304.9,1.1103]
[1760036048559,3.4408,4305.0,4304.9,1.1103]
[1760036050475,3.2078,4305.0,4304.9,1.1103]
[1760036051875,3.5349,4305.0,4304.9,1.1103]
[1760036052169,0.3271,4304.5,4304.4,1.5303675]
[1760036052368,1.1495,4304.5,4304.4,1.1124075]
[1760036052972,4.5408,4304.5,4304.4,0.8046075]
[1760036053173,4.5408,4304.5,4304.4,0.3245075]
[1760036053369,4.5408,4304.5,4304.4,0.0021075]
[1760036054680,9.5408,4304.5,4304.4,0.0021075]
[1760036055171,9.7738,4304.5,4304.4,0.0021075]
[1760036056669,4.7738,4304.5,4304.4,0.3245075]
[1760036057071,4.5408,4304.5,4304.4,0.3245075]
[1760036057271,4.7738,4304.5,4304.4,1.1124075]
[1760036057977,4.5408,4304.5,4304.4,1.1124075]
[1760036058270,4.5903,4304.5,4304.4,1.1124075]
[1760036058778,4.7738,4304.5,4304.4,0.6323075]
[1760036058979,4.7738,4304.5,4304.4,0.0021075]
[1760036059378,4.7738,4304.5,4304.4,0.3245075]
[1760036059675,4.7738,4304.5,4304.4,0.8046075]
[1760036061082,4.5903,4304.5,4304.4,1.1124075]
[1760036061879,4.3573,4304.5,4304.4,1.5303675]
[1760036065685,4.77525,4304.5,4304.4,1.5303675]
[1760036065883,4.3573,4304.5,4304.4,1.5303675]
[1760036067382,3.2078,4304.5,4304.4,1.5303675]
[1760036068185,3.2078,4304.5,4304.4,42.3303675]
[1760036068388,3.5349,4305.1,4305.0,0.6302]
[1760036068591,4.0446,4305.1,4305.0,1.5282]
[1760036069291,4.3573,4305.1,4305.0,1.5282]
[1760036069486,4.77519,4305.1,4305.0,1.5282]
[1760036069682,4.3573,4305.1,4305.0,1.5282]
[1760036070395,4.77519,4305.1,4305.0,1.5282]
[1760036070592,4.77519,4305.1,4305.0,0.4179]
[1760036070797,5.00819,4305.1,4305.0,0.4179]